fUST/lending_fUST_20241214
["ID","MTS","AMOUNT","RATE_DAILY","PERIOD"]
[345336243,1734159045917,-1512.59,0.00027945,7]
[345336244,1734159045927,-500.0,0.00027945,7]
[345336245,1734159045937,-1173.88,0.00027945,7]
[345336246,1734159045946,-150.21386218,0.00027945,7]
[345336247,1734159045959,-586.48494287,0.00027945,7]
[345336248,1734159045979,-520.89863646,0.00027397,7]
[345336249,1734159045989,-3040.02195354,0.00027945,7]
[345336250,1734159046000,-319.34,0.00027945,7]
[345336251,1734159046011,-1068.83924141,0.00027945,7]
[345336252,1734159046021,-500.0,0.00027945,7]
[345336253,1734159046030,-726.21,0.00027945,7]
[345336254,1734159046040,-500.0,0.00027945,7]
[345336256,1734159046050,-840.11,0.00027945,7]
[345336257,1734159046059,-995.1,0.00027945,7]
[345336258,1734159046068,-500.0,0.00027945,7]
[345336260,1734159046078,-509.17838317,0.00027945,7]
[345336262,1734159046087,-500.0,0.00027945,2]
[345336264,1734159046097,-1311.49,0.00027945,7]
[345336266,1734159046106,-1081.72,0.00027945,7]
[345336268,1734159046116,-1397.12,0.00027945,7]
[345336270,1734159046125,-630.74795801,0.00027945,7]
[345336271,1734159046134,-1038.67,0.00027945,7]
[345336272,1734159046144,-500.0,0.00027945,7]
[345336273,1734159046153,-2134.49,0.00027945,7]
[345336274,1734159046162,-500.0,0.00027945,7]
[345336275,1734159046171,-500.0,0.00027945,7]
[345336276,1734159046180,-909.17,0.00027945,7]
[345336277,1734159046190,-14918.91,0.00027945,7]
[345336278,1734159046199,-322.50007508,0.00027945,7]
[345336280,1734159046209,-1332.87,0.00027945,7]
[345336281,1734159046217,-2507.57,0.00027945,7]
[345336283,1734159046227,-457.23032049,0.00027945,7]
[345336284,1734159046242,-500.0,0.00027945,7]
[345336285,1734159046259,-809.35,0.00027945,7]
[345336286,1734159046272,-521.57176033,0.00027945,7]
[345336287,1734159046287,-525.59458743,0.00027945,7]
[345336288,1734159046302,-500.0,0.00027945,7]
[345336289,1734159046319,-992.66,0.00027945,7]
[345336290,1734159046334,-523.64,0.00027945,7]
[345336291,1734159046351,-500.0,0.00027945,7]
[345336292,1734159046366,-6012.59,0.00027945,5]
[345336293,1734159046379,-548.67006181,0.00027945,7]
[345336294,1734159046394,-500.0,0.00027945,7]
[345336295,1734159046407,-1049.65,0.00027945,7]
[345336296,1734159046419,-10760.43,0.00027945,7]
[345336297,1734159046436,-1011.55712821,0.0002799,2]
[345336298,1734159046452,-38520.23505621,0.00028,2]
[345336300,1734159460376,-3492.19264535,0.00030259,120]
[345336301,1734159460402,-181.80028105,0.00030259,120]
[345336302,1734159460426,-401.96929806,0.00030259,120]
[345336303,1734159460450,-173.37336968,0.00030259,30]
[345336304,1734159460476,-411.5953915,0.00030259,120]
[345336305,1734159460500,-1000.81883673,0.00030259,30]
[345336306,1734159460526,-938.81021103,0.00030259,120]
[345336307,1734159460550,-162.95991368,0.00030259,120]
[345336308,1734159460583,-24327.43894419,0.00030259,120]
[345336309,1734159460609,-49021.74065491,0.00030259,120]
[345336310,1734159460634,-1730.08107415,0.00030259,120]
[345336311,1734159460660,-184.72561568,0.00030259,120]
[345336312,1734159460684,-330285.24661442,0.00030259,60]
[345336313,1734159460708,-5000.0,0.00030259,30]
[345336314,1734159460733,-6274.30622001,0.00030259,120]
[345336315,1734159460758,-1010.21930316,0.00030259,120]
[345336316,1734159460783,-10757.64173118,0.00030259,60]
[345336317,1734159460807,-5658.99,0.00030259,30]
[345336318,1734159460832,-762.5,0.00030259,90]
[345336319,1734159460856,-762.5,0.00030259,120]
[345336320,1734159460880,-809.53469729,0.00030259,120]
[345336321,1734159460905,-1755.61289792,0.00030259,120]
[345336322,1734159460929,-473.45556116,0.00030259,120]
[345336323,1734159471317,-300.99,0.00028,30]
[345336324,1734159471342,-198.79,0.00028,120]
[345336325,1734159471367,-2441.24,0.00028,30]
[345336326,1734159471417,-410.07,0.000286,31]
[345336327,1734159471446,-410.07,0.000286,31]
[345336328,1734159471477,-410.07,0.000286,31]
[345336329,1734159471507,-410.07,0.000286,31]
[345336330,1734159471537,-410.07,0.000286,31]
[345336331,1734159471570,-410.07,0.000286,31]
[345336332,1734159471599,-410.07,0.000286,31]
[345336333,1734159471629,-410.07,0.000286,31]
[345336334,1734159471660,-410.07,0.000286,31]
[345336335,1734159471688,-410.07,0.000286,31]
[345336336,1734159471717,-410.07,0.000286,31]
[345336337,1734159471745,-410.07,0.000286,31]
[345336338,1734159471774,-410.07,0.000286,31]
[345336339,1734159471803,-410.07,0.000286,31]
[345336340,1734159471831,-410.07,0.000286,31]
[345336341,1734159471861,-410.07,0.000286,31]
[345336342,1734159471888,-410.07,0.000286,31]
[345336343,1734159471916,-410.07,0.000286,31]
[345336344,1734159471944,-410.07,0.000286,31]
[345336345,1734159471972,-410.07,0.000286,31]
[345336346,1734159471999,-410.07,0.000286,31]
[345336347,1734159472026,-410.07,0.000286,31]
[345336348,1734159472054,-410.07,0.000286,31]
[345336349,1734159472082,-410.07,0.000286,31]
[345336350,1734159472113,-51079.00549339,0.00028851,30]
[345336351,1734159472145,-1057.91044182,0.00029041,120]
[345336352,1734159472173,-410.07,0.000292,31]
[345336353,1734159472201,-410.07,0.000292,31]
[345336354,1734159472229,-410.07,0.000292,31]
[345336355,1734159472256,-410.07,0.000292,31]
[345336356,1734159472284,-410.07,0.000292,31]
[345336357,1734159472312,-410.07,0.000292,31]
[345336358,1734159472340,-410.07,0.000292,31]
[345336359,1734159472369,-410.07,0.000292,31]
[345336360,1734159472396,-410.07,0.000292,31]
[345336361,1734159472424,-410.07,0.000292,31]
[345336362,1734159472452,-410.07,0.000292,31]
[345336363,1734159472481,-410.07,0.000292,31]
[345336364,1734159472617,-410.07,0.000292,31]
[345336365,1734159472648,-410.07,0.000292,31]
[345336366,1734159472677,-410.07,0.000292,31]
[345336367,1734159472706,-410.07,0.000292,31]
[345336368,1734159472735,-410.07,0.000292,31]
[345336369,1734159472764,-410.07,0.000292,31]
[345336370,1734159472795,-410.07,0.000292,31]
[345336371,1734159472824,-410.07,0.000292,31]
[345336372,1734159472854,-410.07,0.000292,31]
[345336373,1734159472888,-410.07,0.000292,31]
[345336374,1734159472918,-410.07,0.000292,31]
[345336375,1734159472947,-410.07,0.000292,31]
[345336376,1734159472983,-300.99,0.000297,30]
[345336377,1734159473008,-733.48,0.000298,30]
[345336378,1734159473037,-410.07,0.000298,31]
[345336379,1734159473065,-410.07,0.000298,31]
[345336380,1734159473093,-410.07,0.000298,31]
[345336381,1734159473124,-410.07,0.000298,31]
[345336382,1734159473152,-410.07,0.000298,31]
[345336383,1734159473181,-410.07,0.000298,31]
[345336384,1734159473209,-410.07,0.000298,31]
[345336385,1734159473238,-410.07,0.000298,31]
[345336386,1734159473265,-410.07,0.000298,31]
[345336387,1734159473294,-410.07,0.000298,31]
[345336388,1734159473323,-410.07,0.000298,31]
[345336389,1734159473351,-410.07,0.000298,31]
[345336390,1734159473387,-410.07,0.000298,31]
[345336391,1734159473416,-410.07,0.000298,31]
[345336392,1734159473446,-410.07,0.000298,31]
[345336393,1734159473477,-410.07,0.000298,31]
[345336394,1734159473508,-2441.24,0.000299,30]
[345336395,1734159473536,-151.0,0.0003,120]
[345336396,1734159473561,-151.0,0.0003,120]
[345336397,1734159473590,-500.0,0.0003,120]
[345336398,1734159473620,-500.0,0.00030136,120]
[345336399,1734159473646,-500.0,0.00030136,120]
[345336400,1734159473670,-500.0,0.00030136,120]
[345336401,1734159473695,-500.0,0.00030136,120]
[345336402,1734159473720,-500.0,0.00030136,120]
[345336403,1734159473746,-500.0,0.00030136,120]
[345336404,1734159473771,-500.0,0.00030136,120]
[345336405,1734159473796,-500.0,0.00030136,120]
[345336406,1734159473822,-549.94009368,0.00030136,120]
[345336407,1734159473849,-1000.0,0.00030136,120]
[345336408,1734159473884,-1000.0,0.0003041,120]
[345336409,1734159473912,-540.80631932,0.00030684,120]
[345336410,1734159473942,-1000.0,0.00031,120]
[345336411,1734159473967,-500.0,0.00031,120]
[345336412,1734159473990,-524.86334733,0.000312,30]
[345336413,1734159474035,-300.99,0.000314,30]
[345336414,1734159474065,-3000.0,0.00031506,30]
[345336415,1734159474090,-3000.0,0.00031506,30]
[345336416,1734159474114,-3000.0,0.00031506,30]
[345336417,1734159474139,-3000.0,0.00031506,30]
[345336418,1734159474164,-3000.0,0.00031506,30]
[345336419,1734159474187,-3000.0,0.00031506,30]
[345336420,1734159474211,-3000.0,0.00031506,30]
[345336421,1734159474238,-3000.0,0.00031506,30]
[345336422,1734159474262,-3000.0,0.00031506,30]
[345336423,1734159474286,-3000.0,0.00031506,30]
[345336424,1734159474311,-3000.0,0.00031506,30]
[345336425,1734159474336,-3000.0,0.00031506,30]
[345336426,1734159474361,-3000.0,0.00031506,30]
[345336427,1734159474385,-3000.0,0.00031506,30]
[345336428,1734159474410,-3000.0,0.00031506,30]
[345336429,1734159474435,-3000.0,0.00031506,30]
[345336430,1734159474464,-3000.0,0.0003178,30]
[345336431,1734159474491,-151.0,0.00031945,120]
[345336432,1734159474515,-1000.0,0.00032,120]
[345336433,1734159474540,-2118.0224868,0.00032,120]
[345336434,1734159474569,-500.0,0.00032,120]
[345336435,1734159474594,-288.123501,0.00032,30]
[345336436,1734159474621,-3000.0,0.00032054,30]
[345336437,1734159474649,-2441.24,0.000321,30]
[345336438,1734159474676,-3000.0,0.00032328,30]
[345336439,1734159474702,-440.504,0.0003244,120]
[345336440,1734159474727,-151.0,0.00032493,120]
[345336441,1734159474750,-1400.0,0.000325,30]
[345336442,1734159474774,-1400.0,0.000325,30]
[345336443,1734159474799,-1400.0,0.000325,30]
[345336444,1734159474823,-1400.0,0.000325,30]
[345336445,1734159474977,-1400.0,0.000325,30]
[345336446,1734159475002,-1400.0,0.000325,30]
[345336447,1734159475026,-1400.0,0.000325,30]
[345336448,1734159475050,-1400.0,0.000325,30]
[345336449,1734159475073,-1400.0,0.000325,30]
[345336450,1734159475095,-1400.0,0.000325,30]
[345336451,1734159475119,-1400.0,0.000325,30]
[345336452,1734159475142,-1400.0,0.000325,30]
[345336453,1734159475166,-1400.0,0.000325,30]
[345336454,1734159475190,-2400.0,0.000325,30]
[345336455,1734159475215,-500.0,0.000325,30]
[345336456,1734159475238,-550.34394679,0.000325,30]
[345336457,1734159475263,-900.0,0.000325,30]
[345336458,1734159475287,-900.0,0.000325,30]
[345336459,1734159475312,-900.0,0.000325,30]
[345336460,1734159475336,-900.0,0.000325,30]
[345336461,1734159475360,-900.0,0.000325,30]
[345336462,1734159475384,-900.0,0.000325,30]
[345336463,1734159475408,-900.0,0.000325,30]
[345336464,1734159475432,-900.0,0.000325,30]
[345336465,1734159475457,-900.0,0.000325,30]
[345336466,1734159475482,-900.0,0.000325,30]
[345336467,1734159475506,-900.0,0.000325,30]
[345336468,1734159475531,-900.0,0.000325,30]
[345336469,1734159475556,-1300.0,0.000325,30]
[345336470,1734159475585,-1100.0,0.000325,30]
[345336471,1734159475610,-1100.0,0.000325,30]
[345336472,1734159475634,-1100.0,0.000325,30]
[345336473,1734159475658,-1100.0,0.000325,30]
[345336474,1734159475682,-1100.0,0.000325,30]
[345336475,1734159475707,-1100.0,0.000325,30]
[345336476,1734159475731,-1100.0,0.000325,30]
[345336477,1734159475755,-1100.0,0.000325,30]
[345336478,1734159475780,-1100.0,0.000325,30]
[345336479,1734159475805,-1100.0,0.000325,30]
[345336480,1734159475831,-1100.0,0.000325,30]
[345336481,1734159475856,-1100.0,0.000325,30]
[345336482,1734159475881,-1100.0,0.000325,30]
[345336483,1734159475906,-1720.13367013,0.000325,30]
[345336484,1734159475931,-1103.380887,0.00032564,35]
[345336485,1734159475957,-1400.0,0.000326,30]
[345336486,1734159475982,-1400.0,0.000326,30]
[345336487,1734159476008,-1400.0,0.000326,30]
[345336488,1734159476041,-1400.0,0.000326,30]
[345336489,1734159476077,-1400.0,0.000326,30]
[345336490,1734159476107,-1400.0,0.000326,30]
[345336491,1734159476140,-1400.0,0.000326,30]
[345336492,1734159476172,-778.65053774,0.000326,30]
[345336493,1734159476205,-1400.0,0.000326,30]
[345336494,1734159476238,-1400.0,0.000326,30]
[345336495,1734159476268,-1400.0,0.000326,30]
[345336496,1734159476301,-1400.0,0.000326,30]
[345336497,1734159476333,-1400.0,0.000326,30]
[345336498,1734159476362,-1400.0,0.000326,30]
[345336499,1734159476415,-1400.0,0.000326,30]
[345336500,1734159476461,-1400.0,0.000326,30]
[345336501,1734159476503,-500.0,0.000326,30]
[345336502,1734159476544,-500.0,0.000326,30]
[345336503,1734159476580,-900.0,0.000326,30]
[345336504,1734159476609,-900.0,0.000326,30]
[345336505,1734159476645,-900.0,0.000326,30]
[345336506,1734159476679,-900.0,0.000326,30]
[345336507,1734159476708,-900.0,0.000326,30]
[345336508,1734159476742,-900.0,0.000326,30]
[345336509,1734159476772,-900.0,0.000326,30]
[345336510,1734159476803,-1100.0,0.000326,30]
[345336511,1734159476837,-900.0,0.000326,30]
[345336512,1734159476872,-900.0,0.000326,30]
[345336513,1734159476905,-1100.0,0.000326,30]
[345336514,1734159476940,-1100.0,0.000326,30]
[345336515,1734159476971,-900.0,0.000326,30]
[345336516,1734159477003,-900.0,0.000326,30]
[345336517,1734159477040,-1100.0,0.000326,30]
[345336518,1734159477071,-900.0,0.000326,30]
[345336519,1734159477102,-900.0,0.000326,30]
[345336520,1734159477131,-1100.0,0.000326,30]
[345336521,1734159477161,-900.0,0.000326,30]
[345336522,1734159477189,-1100.0,0.000326,30]
[345336523,1734159477218,-1100.0,0.000326,30]
[345336524,1734159477251,-1100.0,0.000326,30]
[345336525,1734159477283,-1100.0,0.000326,30]
[345336526,1734159477314,-1100.0,0.000326,30]
[345336527,1734159477343,-1100.0,0.000326,30]
[345336528,1734159477374,-1100.0,0.000326,30]
[345336529,1734159477563,-1100.0,0.000326,30]
[345336530,1734159477592,-1100.0,0.000326,30]
[345336531,1734159477619,-1100.0,0.000326,30]
[345336532,1734159477646,-3000.0,0.00032602,30]
[345336533,1734159477673,-500.0,0.00032876,45]
[345336534,1734159477698,-500.0,0.00032876,49]
[345336535,1734159477722,-558.37043655,0.00032876,53]
[345336536,1734159477750,-3000.0,0.00032876,30]
[345336537,1734159477777,-1000.0,0.00032876,120]
[345336538,1734159477803,-1115.71597054,0.00032876,120]
[345336539,1734159477830,-2088.3752092,0.00033,60]
[345336540,1734159477856,-500.0,0.00033,120]
[345336541,1734159477881,-568.45897,0.00033,120]
[345336542,1734159477908,-1272.47663551,0.0003315,30]
[345336543,1734159477935,-300.99,0.000332,30]
[345336544,1734159477965,-440.503,0.0003364,120]
[345336545,1734159477992,-151.0,0.0003389,120]
[345336546,1734159478021,-500.0,0.00034,120]
[345336547,1734159478047,-2441.24,0.00034,30]
[345336548,1734159478072,-250.0,0.00034,30]
[345336549,1734159478097,-3255.05760776,0.00034555,120]
[345336550,1734159478124,-440.525,0.0003484,120]
[345336551,1734159478150,-151.0,0.00034986,120]
[345336552,1734159478175,-178.8,0.00035,69]
[345336553,1734159478200,-20235.33929174,0.00035,120]
[345336554,1734159478225,-1391.29632325,0.00035,120]
[345336555,1734159478250,-378.61543286,0.00035,120]
[345336556,1734159478275,-500.0,0.00035,120]
[345336557,1734159478300,-6236.5775553,0.00035,120]
[345336558,1734159478324,-759.99033776,0.00035,120]
[345336559,1734159478350,-2516.03255978,0.00035,120]
[345336560,1734159478374,-1217.74207096,0.00035398,46]
[345336561,1734159478398,-2993.787665,0.00035616,120]
[345336562,1734159478427,-300.99,0.000357,30]
[345336563,1734159478451,-151.0,0.00035836,120]
[345336564,1734159478477,-500.0,0.00036,120]
[345336565,1734159478501,-250.0,0.00036,30]
[345336566,1734159478527,-440.501,0.0003604,120]
[345336567,1734159478551,-219.41715702,0.000365,120]
[345336568,1734159478578,-43719.63999578,0.00036971,120]
[345336569,1734159478603,-43719.63999578,0.00036977,120]
[345336570,1734159478629,-43719.63999578,0.00036977,120]
[345336571,1734159478654,-345.50440979,0.00037,30]
[345336572,1734159478678,-500.0,0.00037,120]
[345336573,1734159478702,-166.159,0.00037125,120]
[345336574,1734159478727,-166.16,0.00037125,120]
[345336575,1734159478751,-2441.24,0.000372,30]
[345336576,1734159478778,-440.472,0.0003724,120]
[345336577,1734159478801,-151.0,0.00037479,120]
[345336578,1734159478825,-142467.61765464,0.000375,60]
[345336579,1734159646863,4465.84725009,0.000256,60]
[345336722,1734160238442,-161.323929,0.00025518,2]
[345336724,1734160238452,-271.34294646,0.00026075,2]
[345336727,1734160238463,-911.71863437,0.00026075,2]
[345336914,1734160240196,-307.60896,0.00026075,2]
[345337234,1734160243359,-1159.0601443,0.00026075,2]
[345337236,1734160243369,-158.7265727,0.00026101,2]
[345337238,1734160243380,-232.11,0.000265,7]
[345337242,1734160243389,-824.18462814,0.000265,2]
[345337244,1734160243399,-372.82670725,0.00026573,2]
[345337247,1734160243408,-61.79137066,0.00026573,2]
[345337354,1734160244531,-438.20862934,0.00026573,2]
[345337356,1734160244541,-500.0,0.00026573,2]
[345337358,1734160244550,-300.0,0.00026596,2]
[345337360,1734160244559,-300.0,0.00026597,2]
[345337362,1734160244569,-500.0,0.00026599,2]
[345337364,1734160244578,-166.5838172,0.00026599,2]
[345337366,1734160244588,-445.77875683,0.00026599,2]
[345337368,1734160244597,-95818.23015079,0.000266,2]
[345337370,1734160244607,-3339.93394271,0.000266,2]
[345337372,1734160244616,-441.362,0.000266,2]
[345337374,1734160244625,-6339626.49,0.000266,2]
[345337376,1734160244635,-151.0,0.000266,17]
[345337378,1734160244645,-151.0,0.000266,18]
[345337380,1734160244655,-151.0,0.000266,19]
[345337382,1734160244664,-151.0,0.000266,18]
[345337384,1734160244674,-2160.0,0.00026877,2]
[345337386,1734160244682,-2370.0,0.00026877,2]
[345337388,1734160244696,-500.0,0.00027,2]
[345337390,1734160244705,-824.18462808,0.00027024,2]
[345337392,1734160244714,-1000.0,0.00027121,2]
[345337394,1734160244724,-1007.52677207,0.00027121,2]
[345337397,1734160244734,-447.65,0.00027121,2]
[345337398,1734160244744,-300.0,0.000273,13]
[345337400,1734160244754,-360.88,0.000273,31]
[345337402,1734160244763,-360.88,0.000273,31]
[345337404,1734160244773,-360.88,0.000273,31]
[345337405,1734160244782,-360.88,0.000273,31]
[345337406,1734160244791,-360.88,0.000273,31]
[345337407,1734160244800,-360.88,0.000273,31]
[345337408,1734160244809,-360.88,0.000273,31]
[345337409,1734160244818,-360.88,0.000273,31]
[345337410,1734160244827,-360.88,0.000273,31]
[345337411,1734160244837,-360.88,0.000273,31]
[345337412,1734160244845,-360.88,0.000273,31]
[345337413,1734160244854,-360.88,0.000273,31]
[345337414,1734160244863,-500.0,0.00027373,2]
[345337415,1734160244873,-500.0,0.00027397,7]
[345337416,1734160244882,-500.0,0.00027397,7]
[345337417,1734160244891,-500.0,0.00027397,7]
[345337418,1734160244901,-500.0,0.00027397,7]
[345337419,1734160244910,-500.0,0.00027397,7]
[345337421,1734160244919,-500.0,0.00027397,7]
[345337423,1734160244928,-500.0,0.00027397,7]
[345337424,1734160244938,-500.0,0.00027397,2]
[345337426,1734160244947,-500.0,0.00027397,7]
[345337427,1734160244957,-500.0,0.00027397,7]
[345337428,1734160244967,-500.0,0.00027397,7]
[345337429,1734160244976,-500.0,0.00027397,7]
[345337430,1734160244985,-311.9836919,0.00027397,7]
[345337431,1734160244995,-500.0,0.00027397,7]
[345337433,1734160245004,-500.0,0.00027397,7]
[345337435,1734160245013,-500.0,0.00027397,7]
[345337436,1734160245023,-500.0,0.00027397,7]
[345337437,1734160245033,-500.0,0.00027397,7]
[345337438,1734160245043,-500.0,0.00027397,7]
[345337439,1734160245053,-500.0,0.00027397,7]
[345337440,1734160245062,-500.0,0.00027397,7]
[345337441,1734160245072,-500.0,0.00027397,7]
[345337442,1734160245081,-701.09,0.00027397,7]
[345337443,1734160245091,-500.0,0.00027397,7]
[345337445,1734160245100,-1000.0,0.00027397,7]
[345337446,1734160245109,-500.0,0.00027397,7]
[345337447,1734160245118,-503.59907258,0.00027397,7]
[345337448,1734160245128,-500.0,0.00027397,7]
[345337449,1734160245137,-500.0,0.00027397,2]
[345337450,1734160245148,-500.0,0.00027397,7]
[345337451,1734160245159,-500.0,0.00027397,7]
[345337452,1734160245168,-500.0,0.00027397,7]
[345337453,1734160245177,-718.73,0.00027397,7]
[345337454,1734160245188,-500.0,0.00027397,7]
[345337455,1734160245205,-500.0,0.00027397,7]
[345337457,1734160245214,-500.0,0.00027397,7]
[345337459,1734160245225,-500.0,0.00027397,7]
[345337461,1734160245234,-591.49,0.00027397,7]
[345337462,1734160245244,-500.0,0.00027397,7]
[345337463,1734160245254,-500.0,0.00027397,7]
[345337464,1734160245263,-500.0,0.00027397,7]
[345337465,1734160245272,-507.57559298,0.00027397,7]
[345337466,1734160245282,-500.0,0.00027397,7]
[345337467,1734160245291,-382.52249911,0.00027397,7]
[345337468,1734160245300,-1338.6,0.00027397,7]
[345337469,1734160245309,-205.36,0.00027397,7]
[345337470,1734160245319,-1000.0,0.00027397,2]
[345337471,1734160245328,-500.0,0.00027397,7]
[345337472,1734160245337,-500.0,0.00027397,7]
[345337473,1734160245347,-500.0,0.00027397,7]
[345337474,1734160245356,-1391.48,0.00027397,7]
[345337475,1734160245366,-500.0,0.00027397,7]
[345337476,1734160245376,-552.13,0.00027397,7]
[345337477,1734160245385,-500.0,0.00027397,7]
[345337478,1734160245395,-500.0,0.00027397,7]
[345337479,1734160245404,-603.19,0.00027397,7]
[345337480,1734160245413,-1301.52,0.00027397,7]
[345337481,1734160245423,-1000.0,0.00027397,2]
[345337482,1734160245432,-500.0,0.00027397,7]
[345337483,1734160245447,-749.59,0.00027397,7]
[345337484,1734160245458,-500.0,0.00027397,7]
[345337485,1734160245467,-500.0,0.00027397,7]
[345337486,1734160245476,-500.0,0.00027397,7]
[345337487,1734160245486,-500.0,0.00027397,7]
[345337488,1734160245495,-861.2,0.00027397,7]
[345337489,1734160245504,-500.0,0.00027397,7]
[345337490,1734160245514,-500.0,0.00027397,7]
[345337491,1734160245523,-500.0,0.00027397,7]
[345337492,1734160245533,-965.22,0.00027397,7]
[345337493,1734160245542,-500.0,0.00027397,7]
[345337494,1734160245551,-500.0,0.00027397,7]
[345337495,1734160245561,-500.0,0.00027397,7]
[345337496,1734160245570,-500.0,0.00027397,7]
[345337497,1734160245580,-500.0,0.00027397,7]
[345337498,1734160245589,-500.0,0.00027397,7]
[345337499,1734160245599,-500.0,0.00027397,7]
[345337501,1734160245608,-500.0,0.00027397,7]
[345337502,1734160245618,-500.0,0.00027397,7]
[345337503,1734160245627,-600.55870853,0.00027397,7]
[345337504,1734160245637,-500.0,0.00027397,7]
[345337505,1734160245647,-500.0,0.00027397,7]
[345337507,1734160245656,-500.0,0.00027397,7]
[345337509,1734160245666,-1126.57,0.00027397,7]
[345337511,1734160245675,-500.0,0.00027397,7]
[345337512,1734160245685,-946.51,0.00027397,7]
[345337513,1734160245695,-500.0,0.00027397,2]
[345337514,1734160245704,-500.0,0.00027397,7]
[345337515,1734160245714,-500.0,0.00027397,7]
[345337516,1734160245723,-500.0,0.00027397,7]
[345337517,1734160245733,-500.0,0.00027397,7]
[345337518,1734160245744,-517.84590568,0.00027397,7]
[345337519,1734160245754,-500.0,0.00027397,7]
[345337520,1734160245763,-500.0,0.00027397,7]
[345337521,1734160245772,-500.0,0.00027397,7]
[345337522,1734160245782,-500.0,0.00027397,7]
[345337523,1734160245791,-500.0,0.00027397,7]
[345337524,1734160245801,-500.0,0.00027397,2]
[345337525,1734160245810,-500.0,0.00027397,7]
[345337526,1734160245820,-500.0,0.00027397,7]
[345337527,1734160245830,-500.0,0.00027397,7]
[345337528,1734160245840,-500.0,0.00027397,7]
[345337529,1734160245850,-496.41091685,0.00027397,7]
[345337530,1734160245859,-500.0,0.00027397,7]
[345337531,1734160245869,-502.17569102,0.00027397,7]
[345337532,1734160245879,-352.33238916,0.00027397,7]
[345337533,1734160245889,-500.0,0.00027397,2]
[345337534,1734160245898,-500.0,0.00027397,7]
[345337535,1734160245908,-500.0,0.00027397,7]
[345337536,1734160245917,-520.51,0.00027397,7]
[345337537,1734160245927,-674.85,0.00027397,7]
[345337538,1734160245937,-500.0,0.00027397,7]
[345337539,1734160245947,-500.0,0.00027397,7]
[345337541,1734160245957,-500.0,0.00027397,7]
[345337543,1734160245966,-500.0,0.00027397,7]
[345337544,1734160245975,-500.0,0.00027397,7]
[345337547,1734160245985,-500.0,0.00027397,7]
[345337549,1734160245995,-500.0,0.00027397,7]
[345337550,1734160246004,-2574.58,0.00027397,7]
[345337552,1734160246013,-1343.49,0.00027397,7]
[345337554,1734160246023,-500.0,0.00027397,7]
[345337556,1734160246032,-1564.63,0.00027397,7]
[345337558,1734160246041,-375.9809079,0.00027397,7]
[345337560,1734160246051,-500.0,0.00027397,7]
[345337562,1734160246060,-500.0,0.00027397,7]
[345337564,1734160246069,-684.01,0.00027397,7]
[345337565,1734160246078,-2192.9,0.00027397,7]
[345337566,1734160246087,-249.04415472,0.00027397,7]